bitfinex/quotes_SOLUSD_20220109
["timestamp","ask_amount","ask_price","bid_price","bid_amount"]
[1641700548836,10.03,141.87,141.76,0.25]
[1641700549036,10.03,141.87,141.77,28.70631849]
[1641700549236,10.03,141.91,141.81,10.5681]
[1641700549435,1.84871077,141.93,141.81,86.2314]
[1641700549638,13.83196685,141.96,141.92,29.19999998]
[1641700549836,1.87440982,141.97,141.96,10.6463]
[1641700550039,3.74881964,142.0,141.96,16.8353]
[1641700550237,3.74881964,142.0,141.97,29.15816455]
[1641700550435,47.4585,142.08,141.98,10.03]
[1641700550638,10.5544,142.17,141.98,10.03]
[1641700550639,7.3496386,142.14,141.98,10.03]
[1641700550839,151.9798399,142.13,141.98,10.03]
[1641700551039,151.9798399,142.13,141.99,3.0]
[1641700551237,151.9798399,142.13,142.05,10.5532]
[1641700551438,151.9798399,142.13,142.02,10.03]
[1641700551642,34.9,142.14,142.02,10.03]
[1641700552042,7.35332207,142.1,142.02,10.03]
[1641700552240,3.0,142.13,142.02,10.03]
[1641700552638,7.35319334,142.1,142.02,10.03]
[1641700552839,10.5634,142.06,142.02,10.03]
[1641700553242,39.50321717,142.1,142.03,26.44687805]
[1641700553741,20.4921,142.16,142.03,26.44687805]
[1641700553965,7.35209884,142.13,142.03,26.44687805]
[1641700554667,0.26,142.12,142.03,26.44687805]
[1641700555874,10.8183,142.12,142.02,10.03]
[1641700556974,8.92821685,142.02,141.98,10.03]
[1641700557170,8.92821685,142.02,141.9,10.03]
[1641700557572,1.18643098,142.01,141.9,10.03]
[1641700557772,10.03,142.0,141.89,3.1752413]
[1641700558078,10.5741,141.95,141.9,29.98553757]
[1641700558273,10.03,141.95,141.9,29.98553757]
[1641700558476,10.03,141.99,141.9,29.98553757]
[1641700559073,10.03,141.99,141.89,3.1752413]
[1641700559274,11.21632309,141.99,141.89,3.1752413]
[1641700560076,10.5713,141.94,141.89,3.1752413]
[1641700560274,20.6013,141.94,141.89,3.1752413]
[1641700560674,20.6013,141.94,141.87,26.63720574]
[1641700560877,20.6013,141.94,141.83,70.4195]
[1641700561082,10.5774,141.86,141.75,84.3343]
[1641700561276,10.5774,141.86,141.75,130.39]
[1641700561476,10.5774,141.86,141.75,56.6323]
[1641700561878,10.5774,141.86,141.76,30.46680632]
[1641700563378,10.5774,141.86,141.77,0.26]
[1641700563981,10.5774,141.86,141.77,0.51]
[1641700564179,10.5774,141.86,141.76,30.46680632]
[1641700564379,8.46,141.9,141.77,0.25]
[1641700564582,10.5756,141.88,141.77,0.25]
[1641700565383,10.5756,141.88,141.76,30.46680632]
[1641700565783,0.26,141.87,141.76,30.46680632]
[1641700565984,0.26,141.89,141.76,30.46680632]
[1641700566187,8.72,141.89,141.76,30.46680632]
[1641700566488,0.26,141.88,141.76,30.46680632]
[1641700566785,10.5793,141.83,141.76,30.46680632]
[1641700567186,10.5793,141.83,141.73,23.9595]
[1641700567386,10.5793,141.83,141.75,3.0]
[1641700568087,10.5793,141.83,141.72,33.93384202]
[1641700568288,10.5793,141.83,141.72,3.0]
[1641700568488,10.5793,141.83,141.71,3.0]
[1641700569488,10.5793,141.83,141.72,28.59727487]
[1641700569690,8.46,141.85,141.72,28.59727487]
[1641700569891,8.46,141.85,141.73,3.0]
[1641700570491,8.46,141.85,141.77,10.5766]
[1641700570691,8.46,141.85,141.73,3.0]
[1641700571897,0.26,141.84,141.73,3.0]
[1641700572098,8.46,141.85,141.73,3.0]
[1641700572499,3.0,141.84,141.73,3.0]
[1641700572722,3.0,141.84,141.79,10.5742]
[1641700573421,0.26,141.83,141.73,50.0543]
[1641700573622,8.72,141.83,141.65,35.10548771]
[1641700573822,35.2798,141.81,141.66,57.4805]
[1641700574019,8.72,141.83,141.66,57.4805]
[1641700574622,8.72,141.83,141.68,27.70128915]
[1641700575021,10.5852,141.75,141.66,57.4805]
[1641700575223,10.5852,141.75,141.65,98.8351]
[1641700575422,10.5852,141.75,141.63,8.46]
[1641700576023,10.5852,141.75,141.64,31.95645961]
[1641700576824,10.5852,141.75,141.65,3.0]
[1641700577024,10.5852,141.75,141.6,78.4715]
[1641700577025,9.64998683,141.74,141.6,78.4715]
[1641700577224,10.5918,141.67,141.6,78.4715]
[1641700577428,10.5918,141.67,141.59,46.819]
[1641700578025,10.5918,141.67,141.6,28.73244994]
[1641700578425,10.5918,141.67,141.56,8.46]
[1641700578933,0.26,141.66,141.57,3.0]
[1641700579127,10.5918,141.67,141.57,3.0]
[1641700579327,10.8519,141.66,141.58,31.48567692]
[1641700579627,10.8519,141.66,141.59,3.0]
[1641700579829,10.5919,141.66,141.59,3.0]
[1641700580430,10.5919,141.66,141.54,79.437]
[1641700581233,0.26,141.65,141.54,79.437]
[1641700581434,10.5943,141.63,141.55,29.98176639]
[1641700582233,10.5943,141.63,141.56,0.26]
[1641700582633,10.5943,141.63,141.55,29.98176639]
[1641700582833,10.5943,141.63,141.56,0.26]
[1641700583034,10.5943,141.63,141.56,3.26]
[1641700583234,10.5934,141.64,141.56,3.26]
[1641700584734,8.46,141.72,141.57,0.25]
[1641700584934,8.46,141.72,141.57,8.71]
[1641700585133,8.46,141.72,141.58,30.32218969]
[1641700585335,8.46,141.72,141.58,30.58218969]
[1641700585536,8.46,141.72,141.59,0.25]
[1641700585836,10.5884,141.71,141.62,10.5884]
[1641700586034,10.5884,141.71,141.63,0.26]
[1641700586235,10.5884,141.71,141.64,23.47308207]
[1641700586534,43.7547,141.74,141.59,0.25]
[1641700586737,8.46,141.74,141.6,3.26]
[1641700586935,0.26,141.73,141.61,0.25]
[1641700587135,0.26,141.73,141.61,3.25]
[1641700587335,0.26,141.73,141.62,31.10266736]
[1641700587536,0.26,141.73,141.63,3.0]
[1641700587735,8.46,141.77,141.64,0.26]
[1641700587935,0.26,141.76,141.64,0.26]
[1641700588940,10.586,141.74,141.67,10.5855]
[1641700589541,10.586,141.74,141.66,27.24369657]
[1641700590842,10.586,141.74,141.66,37.82999657]
[1641700591242,10.586,141.74,141.63,0.25]
[1641700591475,10.586,141.74,141.63,0.51]
[1641700591976,10.586,141.74,141.65,10.5867]
[1641700592172,10.586,141.74,141.65,38.92537056]
[1641700592373,10.586,141.74,141.62,3.0]
[1641700592573,10.586,141.74,141.6,24.7119]
[1641700593072,7.887,141.79,141.6,35.3029]
[1641700593073,10.5912,141.67,141.6,35.3029]
[1641700593272,10.5912,141.67,141.6,47.83976885]
[1641700593473,35.3055,141.7,141.6,47.83976885]
[1641700594575,10.5924,141.65,141.6,47.83976885]
[1641700595675,10.5924,141.65,141.6,24.7119]
[1641700595874,10.5924,141.65,141.58,23.9948]
[1641700596075,10.5924,141.65,141.55,24.9401]
[1641700596876,10.5924,141.65,141.54,44.42594392]
[1641700597981,10.5924,141.65,141.55,3.0]
[1641700598280,10.5924,141.65,141.54,44.42594392]
[1641700598281,0.26,141.64,141.53,0.35314546]
[1641700598480,8.72,141.64,141.53,0.35314546]
[1641700598880,9.90257935,141.64,141.53,0.35314546]
[1641700599080,10.6016,141.59,141.53,0.35314546]
[1641700600484,8.46,141.58,141.45,73.4198]
[1641700600683,10.6043,141.56,141.45,73.4198]
[1641700600883,10.6043,141.56,141.44,94.7]
[1641700601089,10.6043,141.56,141.45,29.0032733]
[1641700602293,10.6043,141.56,141.43,49.3664]
[1641700602491,10.6043,141.56,141.44,3.0]
[1641700602992,35.6036,141.55,141.44,13.6034]
[1641700603192,35.3436,141.55,141.44,13.6034]
[1641700603396,0.26,141.54,141.45,24.87794993]
[1641700603595,8.46,141.57,141.45,25.12794993]
[1641700604295,8.46,141.57,141.45,24.87794993]
[1641700604494,10.6027,141.52,141.45,35.48034993]
[1641700604897,10.6027,141.52,141.46,0.25]
[1641700605095,8.46,141.57,141.46,0.25]
[1641700605294,8.46,141.57,141.46,0.51]
[1641700605494,8.46,141.57,141.45,24.87794993]
[1641700605894,8.46,141.57,141.46,0.25]
[1641700606095,8.46,141.57,141.42,8.53962902]
[1641700606496,8.46,141.57,141.43,3.0]
[1641700606696,10.6037,141.5,141.44,10.6042]
[1641700608199,10.6037,141.5,141.44,40.35758964]
[1641700608399,35.3404,141.56,141.47,10.6022]
[1641700609007,8.46,141.57,141.44,29.75338964]
[1641700609403,3.0,141.56,141.44,29.75338964]
[1641700609601,10.6034,141.51,141.45,10.6037]
[1641700610103,35.3468,141.54,141.45,10.6037]
[1641700610321,8.46,141.6,141.47,24.01547942]
[1641700611222,8.46,141.6,141.46,0.25]
[1641700611421,8.46,141.6,141.44,24.352]
[1641700611621,10.6028,141.53,141.44,24.352]
[1641700611822,10.6028,141.53,141.43,11.46]
[1641700612023,10.6028,141.53,141.44,0.25]
[1641700612222,55.7874,141.6,141.44,25.13890018]
[1641700612421,55.7874,141.6,141.44,49.71010018]
[1641700612623,55.7874,141.6,141.45,3.0]
[1641700612823,55.7874,141.6,141.44,49.45010018]
[1641700613222,55.7874,141.6,141.44,49.20010018]
[1641700613723,0.26,141.59,141.45,35.5852]
[1641700613923,35.3402,141.58,141.44,49.20010018]
[1641700614327,35.3402,141.58,141.45,0.25]
[1641700614525,35.3402,141.58,141.45,0.51]
[1641700614726,8.72,141.59,141.45,0.51]
[1641700614928,8.72,141.59,141.45,3.51]
[1641700615129,10.5998,141.58,141.5,10.5998]
[1641700615328,10.5998,141.58,141.48,30.57563909]
[1641700616128,10.5998,141.58,141.51,10.5987]
[1641700616328,10.5998,141.58,141.49,0.25]
[1641700616730,10.5998,141.58,141.48,30.57563909]
[1641700617633,14.2794174,141.58,141.48,30.57563909]
[1641700618633,14.2794174,141.58,141.49,0.25]
[1641700618834,10.5998,141.58,141.49,0.25]
[1641700620239,3.67953244,141.62,141.49,8.71]
[1641700620436,3.67953244,141.62,141.49,8.97]
[1641700620637,270.8438,141.65,141.49,8.97]
[1641700620939,151.2739,141.65,141.49,43.8992]
[1641700621136,43.7703,141.7,141.51,31.27633135]
[1641700621338,10.5929,141.67,141.52,53.9964]
[1641700621635,35.3103,141.7,141.52,132.3022]
[1641700621836,3.67922852,141.71,141.54,0.30679774]
[1641700622038,8.46,141.72,141.61,10.5912]
[1641700622238,43.7663,141.72,141.59,2.8392193]
[1641700622437,10.5919,141.68,141.59,2.8392193]
[1641700623340,10.5919,141.68,141.59,13.4323193]
[1641700624542,10.18,141.7,141.59,39.57887759]
[1641700624942,0.26,141.69,141.59,39.57887759]
[1641700625343,0.26,141.69,141.59,13.4323193]
[1641700626341,0.26,141.69,141.59,37.89156192]
[1641700626542,10.18,141.7,141.59,37.89156192]
[1641700627145,10.5924,141.68,141.59,37.89156192]
[1641700629542,0.26,141.67,141.59,37.89156192]
[1641700629742,10.5924,141.68,141.59,37.89156192]
[1641700629943,120.4628,141.73,141.6,0.25]
[1641700630144,120.4628,141.73,141.64,10.5894]
[1641700630348,35.3005,141.74,141.61,10.18]
[1641700630545,10.18,141.74,141.61,10.18]
[1641700630745,1.18257935,141.73,141.61,10.18]
[1641700630944,10.5926,141.67,141.61,10.18]
[1641700632146,10.5926,141.67,141.66,2.8392193]
[1641700632347,16.65691425,141.67,141.66,2.8392193]
[1641700632546,6.06431425,141.67,141.66,2.8392193]
[1641700632951,35.303,141.73,141.66,2.8392193]
[1641700633146,10.18,141.74,141.66,2.8392193]
[1641700634054,10.5889,141.72,141.66,2.8392193]
[1641700635247,97.11855805,141.78,141.66,13.4273193]
[1641700635248,123.9753,141.77,141.66,13.4273193]
[1641700635549,45.4736,141.77,141.66,13.4273193]
[1641700635748,45.4736,141.77,141.66,2.8392193]
[1641700635947,10.18,141.77,141.66,2.8392193]
[1641700636576,0.26,141.75,141.66,2.8392193]
[1641700637276,10.5889,141.72,141.66,2.8392193]
[1641700639379,20.7689,141.72,141.66,2.8392193]
[1641700639779,0.26,141.75,141.66,2.8392193]
[1641700639982,0.26,141.75,141.66,19.3922193]
[1641700640384,136.26758844,141.8,141.67,24.81187325]
[1641700640581,24.90748844,141.8,141.67,27.81187325]
[1641700640787,24.90748844,141.8,141.66,26.7003193]
[1641700640983,24.90748844,141.8,141.67,10.5867]
[1641700641382,26.08744027,141.8,141.67,10.5867]
[1641700641684,26.08744027,141.8,141.67,42.596884]
[1641700642183,10.5862,141.77,141.67,42.596884]
[1641700642383,24.90748844,141.8,141.67,42.596884]
[1641700643083,10.586,141.77,141.67,42.596884]
[1641700643985,10.586,141.77,141.73,2.8392193]
[1641700644185,10.5849,141.78,141.73,2.8392193]
[1641700645793,0.26,141.77,141.73,2.8392193]
[1641700645987,0.26,141.79,141.73,2.8392193]
[1641700647288,0.26,141.79,141.73,13.4216193]
[1641700647489,75.7051,141.83,141.73,13.4216193]
[1641700647690,13.69935022,141.86,141.73,13.4216193]
[1641700647889,24.27845022,141.86,141.74,0.26]
[1641700648090,20.7591,141.86,141.75,26.94339828]
[1641700648391,10.18,141.86,141.78,10.5784]
[1641700648590,10.18,141.86,141.78,24.71151983]
[1641700649191,10.5784,141.87,141.78,24.71151983]
[1641700649391,77.81255022,141.9,141.78,24.71151983]
[1641700650190,77.81255022,141.9,141.79,10.5781]
[1641700650191,74.2932,141.9,141.79,10.5781]
[1641700650390,3.0,141.89,141.79,10.5781]
[1641700650591,4.17732414,141.89,141.79,10.5781]
[1641700650894,0.26,141.88,141.79,10.5781]
[1641700651090,74.2932,141.9,141.79,10.5781]
[1641700653398,74.2932,141.9,141.84,2.8392193]
[1641700653594,10.5759,141.9,141.84,2.8392193]
[1641700654397,0.26,141.89,141.84,2.8392193]
[1641700654797,10.577,141.88,141.84,2.8392193]
[1641700654998,0.26,141.87,141.84,2.8392193]
[1641700655228,3.03219997,141.86,141.84,2.8392193]
[1641700655599,35.03211428,141.85,141.84,2.8392193]
[1641700655797,45.61201428,141.85,141.84,0.0092193]
[1641700656798,45.61201428,141.85,141.76,10.18]
[1641700656799,66.0,141.84,141.72,75.8632]
[1641700657001,10.5853,141.78,141.72,75.8632]
[1641700657201,10.5853,141.78,141.71,30.90244228]
[1641700658003,10.585,141.76,141.71,30.90244228]
[1641700658609,57.2358,141.83,141.71,30.90244228]
[1641700659006,0.26,141.82,141.71,30.90244228]
[1641700659204,10.8405,141.82,141.71,41.48654228]
[1641700659405,116.1699787,141.89,141.72,10.43]
[1641700659605,99.1578,141.89,141.72,13.43]
[1641700660206,15.09857414,141.93,141.74,31.86319834]
[1641700660406,3.51935022,141.92,141.81,28.35849696]
[1641700660806,3.0,141.91,141.81,28.35849696]
[1641700662836,0.26,141.9,141.79,10.18]
[1641700663435,11.35732414,141.9,141.76,10.18]
[1641700663633,11.35732414,141.9,141.73,78.5493]
[1641700663836,10.5836,141.82,141.74,27.1378759]
[1641700664035,23.1137,141.89,141.74,27.3878759]
[1641700664036,10.18,141.88,141.74,27.3878759]
[1641700664936,10.5796,141.85,141.77,10.5793]
[1641700665236,10.5796,141.85,141.77,42.21385859]
[1641700665637,10.18,141.88,141.77,42.21385859]
[1641700666236,10.5788,141.86,141.77,42.21385859]
[1641700666439,0.26,141.85,141.77,42.21385859]
[1641700666937,10.5788,141.86,141.77,10.5793]
[1641700668539,11.75612414,141.86,141.77,10.5793]
[1641700668943,0.26,141.85,141.77,10.5793]
[1641700669140,10.5791,141.84,141.77,10.5793]
[1641700669340,10.5791,141.84,141.74,24.3639]
[1641700670540,12.43148695,141.84,141.76,10.5803]
[1641700670743,12.43148695,141.84,141.74,24.3639]
[1641700671341,1.85238695,141.83,141.74,24.3639]
[1641700671542,10.5805,141.82,141.75,23.3902724]
[1641700671748,10.5805,141.82,141.76,10.58]
[1641700671941,1.85238695,141.83,141.76,10.58]
[1641700672543,1.85238695,141.84,141.77,0.26]
[1641700672749,1.85238695,141.84,141.78,10.5787]
[1641700673343,1.85238695,141.84,141.75,68.8311724]
[1641700673543,1.85238695,141.86,141.75,68.8311724]
[1641700673847,10.5798,141.83,141.77,10.5798]
[1641700674048,1.85238695,141.86,141.77,10.5798]
[1641700674446,1.85238695,141.86,141.78,27.52997424]
[1641700674646,1.85238695,141.86,141.78,37.95997424]
[1641700674846,1.85238695,141.86,141.79,3.26]
[1641700675047,1.85238695,141.86,141.83,10.5725]
[1641700676049,3.51935022,141.89,141.83,10.5725]
[1641700676250,0.26,141.88,141.83,10.5725]
[1641700676654,1.87215528,141.89,141.81,31.32203005]
[1641700676849,1.87215528,141.89,141.82,10.5762]
[1641700677450,10.5757,141.89,141.82,10.5762]
[1641700678550,10.0757,141.89,141.82,10.5762]
[1641700678751,0.26,141.88,141.82,10.5762]
[1641700679354,3.51935022,141.92,141.82,10.5762]
[1641700679552,0.26,141.91,141.82,10.5762]
[1641700679953,10.5737,141.91,141.85,10.5737]
[1641700680252,3.51935022,141.93,141.85,10.5737]
[1641700680854,13.69935022,141.93,141.85,10.5737]
[1641700681057,14.87667436,141.93,141.85,10.5737]
[1641700681261,25.44957436,141.93,141.84,10.5743]
[1641700681488,25.44957436,141.93,141.8,78.2267]
[1641700681855,25.44957436,141.93,141.81,26.60191473]
[1641700682055,3.51935022,141.9,141.81,26.60191473]
[1641700682456,3.51935022,141.9,141.85,10.5733]
[1641700682656,3.51935022,141.9,141.85,40.09912049]
[1641700682857,18.00455291,141.92,141.85,40.09912049]
[1641700683056,7.43225291,141.92,141.85,40.09912049]
[1641700683457,3.51935022,141.92,141.85,40.09912049]
[1641700684260,3.51935022,141.93,141.85,40.09912049]
[1641700685057,10.5735,141.91,141.85,40.09912049]
[1641700685256,9.5735,141.91,141.85,40.09912049]
[1641700685459,7.48412734,141.94,141.85,40.09912049]
[1641700685859,7.48412734,141.94,141.85,10.5733]
[1641700686058,10.5727,141.92,141.85,10.5733]
[1641700686459,10.5727,141.92,141.84,10.5739]
[1641700687060,3.51935022,141.92,141.84,10.5739]
[1641700687261,14.09165022,141.92,141.85,31.86805504]
[1641700688261,10.5723,141.92,141.85,31.86805504]
[1641700688763,10.5723,141.92,141.86,10.5723]
[1641700689464,10.5723,141.92,141.85,31.86805504]
[1641700691866,10.5723,141.92,141.85,42.44135504]
[1641700695171,3.51935022,141.94,141.85,42.44135504]
[1641700695372,3.51935022,141.94,141.89,10.5704]
[1641700696172,3.51935022,141.97,141.89,10.5704]
[1641700696773,10.5705,141.95,141.89,10.5704]
[1641700699075,3.51935022,141.99,141.89,20.7504]
[1641700699275,3.51935022,141.99,141.9,3.51]
[1641700699475,3.51935022,141.99,141.94,10.5669]
[1641700700282,3.51935022,141.99,141.91,34.24331642]
[1641700700476,12.44756707,142.02,141.92,0.25]
[1641700700676,12.44756707,142.02,141.93,20.7479]
[1641700701079,10.5682,141.99,141.93,20.7479]
[1641700701777,10.5682,141.99,141.93,10.18]
[1641700701977,10.5682,141.99,141.89,10.18]
[1641700702680,10.5682,141.99,141.9,25.58597579]
[1641700703284,14.08755022,141.99,141.9,25.58597579]
[1641700703886,14.08755022,141.99,141.9,36.15617579]
[1641700704110,10.5682,141.99,141.9,36.15617579]
[1641700704913,14.08755022,141.99,141.9,36.15617579]
[1641700707013,0.26,141.98,141.9,36.15617579]
[1641700707215,10.5701,141.96,141.9,36.15617579]
[1641700707814,3.51935022,141.99,141.91,10.18]
[1641700708015,3.51935022,142.0,141.93,10.568]
[1641700708620,49.0281,142.01,141.93,10.568]
[1641700708819,47.67526707,142.02,141.93,10.568]
[1641700709820,10.568,141.99,141.93,10.568]
[1641700711124,3.51935022,142.01,141.94,10.44]
[1641700711520,12.44756707,142.02,141.95,0.25]
[1641700712121,8.92821685,142.02,141.97,10.5651]
[1641700712321,8.92821685,142.02,141.95,0.25]
[1641700712524,8.92821685,142.02,141.96,29.43777474]
[1641700713523,19.49401685,142.02,141.96,29.43777474]
[1641700713723,19.49401685,142.02,141.94,10.18]
[1641700713924,19.49401685,142.02,141.95,0.26]
[1641700714123,19.49401685,142.02,141.92,10.18]
[1641700714324,54.4663,141.91,141.84,24.3021]
[1641700714524,0.4663,141.91,141.79,3.9762208]
[1641700714727,0.4663,141.91,141.8,31.62793848]
[1641700715027,10.20371053,141.91,141.8,31.62793848]
[1641700715429,0.26,141.9,141.8,31.62793848]
[1641700715627,10.5781,141.85,141.8,31.62793848]
[1641700716430,10.5781,141.85,141.81,0.26]
[1641700716631,10.5781,141.85,141.77,20.7583]
[1641700717432,10.5781,141.85,141.78,26.37563127]
[1641700718035,10.5781,141.85,141.79,0.26]
[1641700718234,35.2561,141.9,141.79,0.51]
[1641700718434,35.2561,141.9,141.79,3.51]
[1641700718834,35.2561,141.9,141.79,3.26]
[1641700719038,35.2561,141.9,141.8,0.25]
[1641700719234,10.5763,141.87,141.8,0.25]
[1641700720234,10.5763,141.87,141.79,0.51]
[1641700720440,10.5763,141.87,141.79,3.51]
[1641700720836,10.5763,141.87,141.8,10.5763]
[1641700721037,10.5763,141.87,141.81,3.26]
[1641700721239,10.5763,141.87,141.81,0.26]
[1641700722536,10.0763,141.87,141.79,0.51]
[1641700723537,10.0763,141.87,141.79,0.26]
[1641700724239,10.0763,141.87,141.78,26.37563127]
[1641700724439,7.5763,141.87,141.78,26.37563127]
[1641700724841,7.5763,141.87,141.78,36.95373127]
[1641700725942,7.5763,141.87,141.79,0.26]
[1641700727845,7.5763,141.87,141.79,10.8374]
[1641700728746,7.5763,141.87,141.79,10.5774]
[1641700728945,7.5763,141.87,141.75,10.18]
[1641700729147,7.5763,141.87,141.74,76.3404]
[1641700729950,7.5763,141.87,141.74,104.67798556]
[1641700730153,7.5763,141.87,141.75,0.25]
[1641700730377,7.5763,141.87,141.75,0.51]
[1641700730887,0.26,141.86,141.75,0.51]
[1641700731081,10.5807,141.81,141.75,0.51]
[1641700731281,10.5807,141.81,141.75,0.26]
[1641700733080,10.5807,141.81,141.75,10.8405]
[1641700734582,10.5797,141.82,141.75,10.8405]
[1641700734785,35.264,141.86,141.76,0.25]
[1641700735384,3.98565022,141.91,141.77,10.18]
[1641700735582,3.98565022,141.91,141.78,78.7163]
[1641700735782,10.5741,141.9,141.78,89.4063]
[1641700735985,10.5741,141.9,141.84,10.5741]
[1641700736386,10.5741,141.9,141.85,0.26]
[1641700736584,0.4663,141.91,141.85,0.26]
[1641700736984,0.4663,141.91,141.83,0.26]
[1641700737185,11.0397,141.91,141.85,10.5734]
[1641700738284,0.4663,141.91,141.85,10.5734]
[1641700738485,0.4663,141.91,141.87,10.5723]
[1641700738889,0.4663,141.91,141.88,0.26]
[1641700740788,0.4663,141.91,141.88,10.8318]
[1641700741188,0.4663,141.91,141.88,0.26]
[1641700742791,132.13830921,141.99,141.88,0.51]
[1641700742992,3.51935022,141.97,141.88,3.26]
[1641700743391,14.08855022,141.97,141.88,13.8317]
[1641700743591,10.5692,141.97,141.88,13.8317]
[1641700747494,10.5685,141.98,141.92,10.5687]
[1641700747698,3.51935022,141.99,141.89,153.53172188]
[1641700747898,3.51935022,141.99,141.91,69.63]
[1641700748095,3.51935022,141.99,141.93,31.44199235]
[1641700748296,3.51935022,141.99,141.94,10.18]
[1641700748297,1.67717465,141.99,141.94,10.18]
[1641700748501,1.67717465,141.99,141.94,13.69]
[1641700748698,24.4533,142.08,141.94,13.69]
[1641700749027,10.5633,142.06,141.98,10.5634]
[1641700749400,10.5633,142.06,141.99,0.26]
[1641700749599,10.5633,142.06,141.98,10.5634]
[1641700751902,10.5633,142.06,141.99,0.26]
[1641700754506,10.5633,142.06,141.99,28.07037828]
[1641700754909,10.5633,142.06,141.99,38.63387828]
[1641700755407,10.5633,142.06,141.99,10.8235]
[1641700761043,10.5633,142.06,141.92,10.18]
[1641700761241,10.18,142.05,141.9,87.4453]
[1641700761441,57.0287,142.05,141.9,87.4453]
[1641700761843,57.0287,142.05,141.91,23.49851357]
[1641700762242,35.2284,142.02,141.92,10.5684]
[1641700762442,35.2284,142.02,141.92,13.5684]
[1641700762641,35.2284,142.02,141.92,10.5684]
[1641700762841,35.2284,142.02,141.93,0.26]
[1641700763042,10.5686,141.98,141.93,0.26]
[1641700763243,10.5686,141.98,141.93,10.828]
[1641700763444,0.26,142.01,141.94,0.26]
[1641700764547,10.5681,141.99,141.94,0.26]
[1641700767453,10.5681,141.99,141.92,10.5686]
[1641700767853,10.5681,141.99,141.93,0.26]
[1641700768554,10.5681,141.99,141.92,0.26]
[1641700771559,3.0,141.98,141.92,0.26]
[1641700771958,10.5695,141.97,141.92,0.26]
[1641700773061,10.0695,141.97,141.92,0.26]
[1641700774060,10.5687,141.98,141.92,10.8287]
[1641700774261,10.5687,141.98,141.92,10.5687]
[1641700775286,10.5687,141.98,141.91,10.5692]
[1641700776588,10.5687,141.98,141.9,122.1364]
[1641700776788,10.5687,141.98,141.9,20.7501]
[1641700778891,0.26,141.97,141.9,10.18]
[1641700779090,10.5711,141.95,141.9,10.18]
[1641700781091,10.5702,141.96,141.9,20.7502]
[1641700782093,10.5696,141.97,141.9,20.7502]
[1641700783093,10.568,141.99,141.9,20.7502]
[1641700783392,101.09457414,142.02,141.9,20.7502]
[1641700783593,101.09457414,142.02,141.9,10.18]
[1641700783792,96.176,142.02,141.9,10.18]
[1641700783992,96.176,142.02,141.91,3.0]
[1641700784193,10.5684,141.99,141.91,3.0]
[1641700784492,10.5684,141.99,141.9,10.18]
[1641700784893,10.5684,141.99,141.91,3.26]
[1641700785096,10.5684,141.99,141.91,13.44]
[1641700785296,10.5684,141.99,141.92,10.5682]
[1641700785493,10.5684,141.99,141.91,13.44]
[1641700785694,10.5684,141.99,141.91,10.44]
[1641700785895,0.26,141.98,141.91,10.44]
[1641700786098,0.26,141.98,141.92,3.0]
[1641700786296,0.26,141.98,141.91,10.44]
[1641700786496,0.26,142.01,141.95,10.566]
[1641700786895,4.91857414,142.03,141.95,34.08676047]
[1641700787296,3.98938182,142.0,141.95,34.08676047]
[1641700787699,3.98938182,142.0,141.95,10.566]
[1641700788099,3.98938182,142.0,141.94,10.5673]
[1641700788298,3.98938182,142.03,141.92,88.4024]
[1641700788499,3.98938182,142.03,141.92,85.4024]
[1641700788900,10.5667,142.01,141.93,0.26]